Cogmind - Beta 13 @@@ ROGUE MODE // 2024.04.21 @ 15:39:20 Player: Barbarossa Result: Core destroyed Performance ------------- Evolutions (4) 2000 Regions Visited (6) 1200 Robots Destroyed (105) 525 Value Destroyed (3182) 3182 Prototype IDs (7) 140 Alien Tech Used (0) 0 Bonus (652) 652 TOTAL SCORE: 7699 Bonus ------- High Alert Combat Kills 136 Follower Combat Kills 35 Entered DSFs 500 Friendly Fire -19 Cogmind --------- Core Integrity 0/850 Matter 37/300 Energy 100/100 System Corruption 0% Temperature Cool (0) Movement Core (1350) Ox26 Location -6/Factory Parts ------- > --- POWER (2) -------- (None) > --- PROPULSION (4) --- (None) > --- UTILITY (6) ------ Huge Storage Unit Improved Signal Interpreter Improved Targeting Computer Weapon Cycler > --- WEAPON (3) ------- (None) > --- INVENTORY (25) --- Power Amplifier Advanced Heat Sink Coolant Injector High-capacity Storage Unit Compact Matter Pod (0) Enhanced Optical Array Weapon Cycler System Shield Authchip [R/Combat] Authchip [R/Combat] System Restoration Module System Restoration Module Plasma Rifle Improved Datajack Plasma Cutter Peak State ------------ > --- POWER ------------ Improved Ion Engine Angular Momentum Engine > --- PROPULSION ------- Medium Treads Medium Treads Medium Treads Medium Treads > --- UTILITY ---------- Advanced Heat Sink Huge Storage Unit Improved Signal Interpreter Improved Targeting Computer Hacking Suite System Shield > --- WEAPON ----------- Magnetic Acceleration Cannon Magnetic Acceleration Cannon Magnetic Acceleration Cannon > --- INVENTORY -------- Improved Treads Improved Treads Medium Treads Power Amplifier Coolant Injector High-capacity Storage Unit Compact Matter Pod Compact Matter Pod Enhanced Optical Array Weapon Cycler Weapon Cycler Heavy Armor Plating System Shield Authchip [R/Combat] Authchip [R/Combat] System Restoration Module System Restoration Module Gauss Rifle Gauss Rifle Assault Cannon Magnetic Acceleration Cannon Improved Datajack Plasma Cutter [Rating: 63] Favorites ----------- Power Improved Ion Engine Engine Improved Ion Engine Propulsion Armored Treads Treads Armored Treads Leg Aluminum Leg Utility Improved Heat Sink Device Improved Heat Sink Storage High-capacity Storage Unit Processor Improved Signal Interpreter Hackware Hacking Suite Protection Hardened Light Armor Plating Weapon Magnetic Acceleration Cannon Energy Gun Heavy Particle Gun Ballistic Gun Assault Rifle Ballistic Cannon Magnetic Acceleration Cannon Build | -11 -10 -9 -8 -7 -7 -6 ------- Run | Yrd Mat Mat Mat Fac DSF Fac Slots Evolved 8 | . . 2 2 2 . 2 Power 1 | . . . . 1 . . Propulsion 2 | . . 2 . . . . Utility 4 | . . . 2 . . 2 Weapon 1 | . . . . 1 . . Parts Attached 74 | 1 4 16 21 2 5 25 Power 8 | . . 3 1 1 . 3 Engine 8 | . . 3 1 1 . 3 Core . | . . . . . . . Reactor . | . . . . . . . Propulsion 25 | . 2 8 7 . 3 5 Treads 17 | . 2 . 7 . 3 5 Leg 8 | . . 8 . . . . Wheel . | . . . . . . . Hover . | . . . . . . . Flight . | . . . . . . . Utility 20 | . 2 3 6 . 1 8 Device 8 | . . . 4 . . 4 Storage 3 | . 1 . 1 . 1 . Processor 2 | . . . 1 . . 1 Hackware 2 | . . . . . . 2 Protection 5 | . 1 3 . . . 1 Artifact . | . . . . . . . Weapon 21 | 1 . 2 7 1 1 9 Energy Gun 11 | . . 2 7 1 1 . Energy Cannon . | . . . . . . . Ballistic Gun 3 | 1 . . . . . 2 Ballistic Cannon 7 | . . . . . . 7 Launcher . | . . . . . . . Special Weapon . | . . . . . . . Impact Weapon . | . . . . . . . Slashing Weapon . | . . . . . . . Piercing Weapon . | . . . . . . . Special Melee Weapon . | . . . . . . . Unidentified Prototypes 3 | . . . 3 . . . Parts Lost 27 | . . 6 1 . . 20 Power 6 | . . 2 . . . 4 Propulsion 9 | . . 2 . . . 7 Utility 6 | . . 1 1 . . 4 Weapon 6 | . . 1 . . . 5 Highest Loss Streak 9 | . . 3 1 . . 9 To Critical Strikes 1 | . . . . . . 1 Average Slot Usage (%) 94 | . 95 98 99 100 96 86 Engine 9 | . 14 10 9 15 11 7 Treads 23 | . 26 . 32 30 30 23 Leg 8 | . 1 43 3 . . . Device 10 | . . . 21 15 15 9 Storage 8 | . 14 11 9 7 7 6 Processor 4 | . . . . 7 7 12 Hackware 2 | . . . . . . 7 Protection 4 | . 9 10 5 . . . Energy Gun 9 | . . 10 17 23 23 . Ballistic Gun 6 | . 28 11 . . . . Ballistic Cannon 5 | . . . . . . 16 Naked Turns . | . . . . . . . Heaviest Build 125 | 12 32 37 60 66 99 125 Greatest Support 112 | 20 40 40 80 80 104 112 Greatest Overweight (x) 31 | . . 1 . . . 31 Average Overweight (x) . | . . . . . . 1 Largest Inventory Capacity 25 | 8 15 15 20 20 25 25 Average Capacity 19 | 8 14 15 19 20 20 25 Most Carried 25 | 6 15 15 20 20 20 25 Average Carried 18 | 6 11 14 18 19 19 22 Final Capacity 25 | 8 15 15 20 20 25 25 Final Carried 20 | 6 15 14 20 20 20 15 Class Distribution -------------------- 57% | Mutant 16% | Gunner 14% | Hacker-Gunner 9% | Scavenger-Mutant Dominant Class ---------------- Mutant | -10/Materials Mutant | -9/Materials Mutant | -8/Materials Gunner | -7/Factory Gunner | -7/DSF Hacker-Gunner | -6/Factory Resources | -11 -10 -9 -8 -7 -7 -6 ----------- Run | Yrd Mat Mat Mat Fac DSF Fac Matter Collected 2561 | 200 343 411 505 . 60 1042 Remotely . | . . . . . . . Salvage Created 3328 | . 395 645 1098 27 289 874 Parts 187 | . 27 43 45 . 16 56 Haulers Intercepted 7 | . 1 1 4 . . 1 Recyclers Shooed 3 | . 1 1 1 . . . Parts Field Recycled . | . . . . . . . Retrieved Matter . | . . . . . . . Parts Self-Destructed . | . . . . . . . Prevented . | . . . . . . . Kills | -11 -10 -9 -8 -7 -7 -6 ------- Run | Yrd Mat Mat Mat Fac DSF Fac Combat Hostiles Destroyed 80 | . 8 18 22 . 8 24 Guns 53 | . 8 17 19 . 8 1 Cannons 23 | . . . . . . 23 Classes Destroyed 13 | . 7 1 1 . 2 2 Worker 7 | . 1 . 1 1 . 4 Builder 3 | . . . . . . 3 Hauler 7 | . 1 1 4 . . 1 Recycler 1 | . 1 . . . . . Operator 2 | . 1 . . . . 1 Watcher 5 | . 1 1 2 . . 1 Swarmer 29 | . 3 8 9 . 4 5 Grunt 29 | . 5 5 7 . 1 11 Sentry 12 | . . 5 5 . . 2 Specialist 2 | . . . . . 2 . Hunter 2 | . . . 1 . . 1 Programmer 4 | . . . . . . 4 Heavy 2 | . . . . . 1 1 Best Kill Streak 8 | . 6 4 4 1 5 8 Combat Bots Only 5 | . 3 4 4 . 5 5 Max Kills in Single Turn 2 | . 2 1 2 1 2 2 Gunslinging 1 | . 1 . 1 . 1 . Exploded . | . . . . . . . Melee . | . . . . . . . Uniques/NPCs Destroyed . | . . . . . . . Combat | -11 -10 -9 -8 -7 -7 -6 -------- Run | Yrd Mat Mat Mat Fac DSF Fac Hostile Shots Fired 699 | . 54 112 148 . 58 327 Missed 205 | . 18 27 54 . 17 89 Damage Taken 7319 | . 388 1039 1196 . 730 3966 Core 1187 | . 83 91 78 . 72 863 Absorbed by Shields . | . . . . . . . Regen/Repaired (Parts) 78 | . . 78 . . . . Core Remaining (%) 83 | 100 66 77 85 . 89 . Volleys Fired 312 | . 36 66 102 2 16 90 Largest 3 | . 2 2 2 3 3 3 Hottest 190 | . 40 106 110 165 190 159 Shots Fired 660 | . 72 129 196 6 48 209 Gun 476 | . 72 129 196 6 48 25 Cannon 184 | . . . . . . 184 Launcher . | . . . . . . . Special . | . . . . . . . Kinetic 368 | . 72 87 . . . 209 Thermal 292 | . . 42 196 6 48 . Explosive . | . . . . . . . Electromagnetic . | . . . . . . . Robot Hit Streak 15 | . 8 7 13 2 11 15 Robot Miss Streak 8 | . 4 5 8 3 3 3 Penetration Max 1 | . . . . . . 1 Secondary Targets 6 | . 2 . 1 . 3 . Max Gunslinging Chain 1 | . 1 . 1 . 1 . Shots Hit Robots 407 | . 38 73 125 2 36 133 Core Hits 183 | . 22 32 51 1 18 59 Critical Kills 1 | . 1 . . . . . Critical Parts Destroyed . | . . . . . . . Critical Strikes 29 | . 1 4 16 . . 8 Burn 19 | . . 3 16 . . . Destroy 2 | . 1 1 . . . . Blast 8 | . . . . . . 8 Melee Attacks . | . . . . . . . Impact . | . . . . . . . Slashing . | . . . . . . . Piercing . | . . . . . . . Sneak Attacks . | . . . . . . . Combat Hostiles . | . . . . . . . Follow-up Attacks . | . . . . . . . Damage Inflicted 8291 | . 524 977 1858 35 828 4069 Guns 4418 | . 508 965 1856 35 828 226 Cannons 3708 | . . . . . . 3708 Explosions 96 | . . . . . . 96 Melee . | . . . . . . . Ramming 69 | . 16 12 2 . . 39 Kinetic 5107 | . 508 665 . . . 3934 Thermal 3115 | . . 300 1856 35 828 96 Explosive . | . . . . . . . Electromagnetic . | . . . . . . . Impact . | . . . . . . . Slashing . | . . . . . . . Piercing . | . . . . . . . Highest Corruption 1 | . . . . 1 1 . Average Corruption 1 | . . . . 1 1 . Corruption Purged . | . . . . . . . Corruption Blocked . | . . . . . . . Effects 1 | . . . . . 1 . Parts Rejected 1 | . . . . . 1 . Overload Shots . | . . . . . . . Overflow Damage 131 | . . . . . . 131 Projectiles 75 | . . . . . . 75 Explosions 56 | . . . . . . 56 Melee . | . . . . . . . Knockbacks 34 | . . . . . . 34 Impact 1 | . . . . . . 1 Kinetic 27 | . . . . . . 27 Secondary 6 | . . . . . . 6 Self-Inflicted Damage . | . . . . . . . Shots . | . . . . . . . Rammed 15 | . 3 . 1 . . 11 Targets Rammed 17 | . 3 2 1 . . 11 Kicked 2 | . . 2 . . . . Crushed . | . . . . . . . Highest Temperature 233 | . 14 233 17 15 24 159 Average Temperature 47 | . 5 74 6 10 7 42 Received Heat Transfer 1500 | . 147 354 459 . 171 369 Siege Activations . | . . . . . . . Robots Corrupted . | . . . . . . . Combat Hostiles . | . . . . . . . Parts Fried . | . . . . . . . Impact Corruptions . | . . . . . . . Robots Melted 5 | . . 1 4 . . . Combat Hostiles 4 | . . 1 3 . . . Parts Melted 24 | . . 2 17 2 3 . Heat Transferred 9040 | . . 1073 6105 74 1738 50 Parts Sabotaged 2 | . . . . . . 2 Parts Stolen . | . . . . . . . Parts Stripped . | . . . . . . . Power Chain Reactions . | . . . . . . . Alert | -11 -10 -9 -8 -7 -7 -6 ------- Run | Yrd Mat Mat Mat Fac DSF Fac Peak Influence 609 | . 150 368 497 190 355 609 Initial 186 | . . 50 105 185 133 186 Average 247 | . 72 213 315 189 249 288 Maximum Alert Level 2 | . . 1 2 . 1 2 Low Security (%) 47 | 100 100 34 25 100 21 48 Level 1 34 | . . 65 49 . 78 20 Level 2 17 | . . . 25 . . 31 Level 3 . | . . . . . . . Level 4 . | . . . . . . . Level 5 . | . . . . . . . High Security . | . . . . . . . Max Security . | . . . . . . . Sterilizations 1 | . . . . . 1 . Squads Dispatched 20 | . 1 2 4 . 2 11 Investigation 4 | . . 2 2 . . . Extermination 3 | . . . . . . 3 Reinforcement 9 | . 1 . 2 . 2 4 Assault 1 | . . . . . . 1 Garrison 3 | . . . . . . 3 Intercept . | . . . . . . . Searches Triggered . | . . . . . . . Construction Impeded 1 | . . . . . . 1 Haulers Reinforced 1 | . . . . . . 1 Active Scanning Responses . | . . . . . . . Cargo Convoy Interrupts . | . . . . . . . Stealth | -11 -10 -9 -8 -7 -7 -6 --------- Run | Yrd Mat Mat Mat Fac DSF Fac Distress Signals 3 | . . 1 2 . . . Communications Jammed . | . . . . . . . Distress Signals . | . . . . . . . Times Spotted 133 | . 16 26 42 . 10 39 Peak Tracking Total 9 | . 5 5 7 . 4 9 Tactical Retreats 6 | . . 1 1 . . 4 Traps | -11 -10 -9 -8 -7 -7 -6 ------- Run | Yrd Mat Mat Mat Fac DSF Fac Traps Triggered 5 | . . 1 2 1 . 1 Indirectly . | . . . . . . . Trap Hack Attempts . | . . . . . . . Triggered . | . . . . . . . Disarmed . | . . . . . . . Reprogrammed 1 | . 1 . . . . . Reused . | . . . . . . . Traps Extracted . | . . . . . . . Installed . | . . . . . . . Triggered . | . . . . . . . Machines | -11 -10 -9 -8 -7 -7 -6 ---------- Run | Yrd Mat Mat Mat Fac DSF Fac Machines Disabled 9 | . . . 1 . . 8 Max in Single Turn 4 | . . . 1 . . 4 Machines Repaired . | . . . . . . . Machines Dismantled . | . . . . . . . Machines Sabotaged . | . . . . . . . Overloaded Fab Kills . | . . . . . . . Hacking | -11 -10 -9 -8 -7 -7 -6 --------- Run | Yrd Mat Mat Mat Fac DSF Fac Machines Accessed 17 | . 5 6 2 1 . 3 Terminals 15 | . 5 4 2 1 . 3 Fabricators . | . . . . . . . Repair Stations 1 | . . 1 . . . . Recycling Units . | . . . . . . . Scanalyzers 1 | . . 1 . . . . Garrison Access . | . . . . . . . Total Hacks 46 | . 21 11 4 2 . 8 Successful 24 | . 9 9 3 1 . 2 Failed 22 | . 12 2 1 1 . 6 Catastrophic . | . . . . . . . Database Lockouts . | . . . . . . . Manual 25 | . 15 5 2 . . 3 Terminals 42 | . 21 7 4 2 . 8 Fabricators . | . . . . . . . Repair Stations 2 | . . 2 . . . . Recycling Units . | . . . . . . . Scanalyzers 2 | . . 2 . . . . Garrison Access . | . . . . . . . Terminal Hacks 9 | . 3 2 1 1 . 2 Record 1 | . . . . . . 1 Prototype ID Bank 2 | . 1 . 1 . . . Open DSF 2 | . . . . 1 . 1 Alert Level 1 | . . 1 . . . . Unreport Threat 1 | . . 1 . . . . Locate Traps 1 | . 1 . . . . . Reprogram Traps 1 | . 1 . . . . . Fabricator Hacks . | . . . . . . . Repair Station Hacks 2 | . . 2 . . . . Scan Component 1 | . . 1 . . . . Repair 1 | . . 1 . . . . Recycling Unit Hacks . | . . . . . . . Scanalyzer 2 | . . 2 . . . . Insert Component 1 | . . 1 . . . . Analyze 1 | . . 1 . . . . Garrison Access Hacks . | . . . . . . . Unauthorized Hacks 11 | . 6 3 2 . . . Terminals 11 | . 6 3 2 . . . Assimilate 1 | . 1 . . . . . Botnet 9 | . 4 3 2 . . . Operators 1 | . 1 . . . . . Fabricators . | . . . . . . . Repair Stations . | . . . . . . . Recycling Units . | . . . . . . . Scanalyzers . | . . . . . . . Garrison Access . | . . . . . . . Data Cores Recovered 1 | . . . . . . 1 Used 1 | . . . . . . 1 Hacking Detections 16 | . 5 6 2 1 . 2 Full Trace Events 1 | . . 1 . . . . Feedback Events . | . . . . . . . Feedback Blocked . | . . . . . . . Robot Schematics Acquired . | . . . . . . . Robots Built . | . . . . . . . Authchips . | . . . . . . . Time . | . . . . . . . Total Robot Build Rating . | . . . . . . . Part Schematics Acquired 1 | . . 1 . . . . Parts Built . | . . . . . . . Authchips . | . . . . . . . Time . | . . . . . . . Total Part Build Rating . | . . . . . . . Parts Repaired 1 | . . 1 . . . . Time 26 | . . 26 . . . . Parts Recycled . | . . . . . . . Recycled Matter . | . . . . . . . Retrieved Matter . | . . . . . . . Retrieved Components . | . . . . . . . Parts Scanalyzed 1 | . . 1 . . . . Part Schematics Acquired 1 | . . 1 . . . . Parts Damaged . | . . . . . . . Bothacking | -11 -10 -9 -8 -7 -7 -6 ------------ Run | Yrd Mat Mat Mat Fac DSF Fac Used RIF Installer . | . . . . . . . Robots Hacked . | . . . . . . . Non-combat . | . . . . . . . Combat . | . . . . . . . Robot Hacks Applied . | . . . . . . . Relay Couplers Released . | . . . . . . . Fabnet Peak Effective % . | . . . . . . . Robots Rewired 1 | . . . . 1 . . Allies Hacked . | . . . . . . . Hacks Repelled . | . . . . . . . Allies | -11 -10 -9 -8 -7 -7 -6 -------- Run | Yrd Mat Mat Mat Fac DSF Fac Total Allies 1 | . . . . 1 . . Largest Group 1 | . . . . 1 1 1 Highest-Rated Group 20 | . . . . 20 20 20 Highest-Rated Ally 20 | . . . . 20 20 20 Total Orders . | . . . . . . . Ally Attacks 6 | . . . . . 6 . Total Damage 185 | . . . . . 185 . Kills 1 | . . . . . 1 . Allies Corrupted . | . . . . . . . Allies Melted . | . . . . . . . Intel | -11 -10 -9 -8 -7 -7 -6 ------- Run | Yrd Mat Mat Mat Fac DSF Fac Robot Analysis Total . | . . . . . . . Derelict Logs Recovered . | . . . . . . . Drone Launches . | . . . . . . . Drone Recoveries . | . . . . . . . Exploration | -11 -10 -9 -8 -7 -7 -6 ------------- Run | Yrd Mat Mat Mat Fac DSF Fac Turns Passed 4848 | 2 720 745 1503 209 204 1465 Spaces Moved 2022 | 1 368 360 676 111 80 426 Core 2 | . . . . . . 2 Treads 1504 | . 325 . 564 111 80 424 Legs 516 | 1 43 360 112 . . . Wheels . | . . . . . . . Hover . | . . . . . . . Flight . | . . . . . . . Fastest Speed 120 | 120 120 120 120 170 162 160 Average Speed 171 | 120 155 120 161 170 164 246 Slowest Speed 1600 | 120 160 190 170 170 170 1600 Overloaded Moves . | . . . . . . . Propulsion Burnouts . | . . . . . . . Robots Hopped . | . . . . . . . Cave-ins Triggered . | . . . . . . . Exploration Rate (%) 35 | 2 58 44 47 3 84 12 Regions Visited 6 Branch Regions . Pre-discovered Areas . | . . . . . . . Known Exits Taken 2 | . . . 1 1 . . Unknown Exits Taken 3 | 1 1 1 . . . . Scrap Searched . | . . . . . . . Spaces Dug . | . . . . . . . Terrain Destroyed 61 | . . . . . . 61 Melee . | . . . . . . . Projectile 29 | . . . . . . 29 AOE 31 | . . . . . . 31 Terrain Rammed . | . . . . . . . Walls Destroyed . | . . . . . . . Machines Disabled . | . . . . . . . Actions | -11 -10 -9 -8 -7 -7 -6 --------- Run | Yrd Mat Mat Mat Fac DSF Fac Total 2725 | 1 443 543 894 127 116 601 Wait 169 | . 17 83 43 . 2 24 Move 2016 | . 367 359 675 110 79 426 Hop . | . . . . . . . Pick Up 75 | . 13 11 26 2 5 18 Fast Attach 12 | . . 1 6 . 2 3 Attach 34 | . 2 9 3 2 . 18 Detach . | . . . . . . . Swap 28 | 1 2 6 12 . 3 4 Drop 52 | . 3 6 26 . 9 8 Fire 312 | . 36 66 102 2 16 90 Melee . | . . . . . . . Ram 5 | . . . . . . 5 Kick 2 | . . 2 . . . . Crush 9 | . 3 . 1 . . 5 Escape Stasis . | . . . . . . . Rewire 11 | . . . . 11 . . Trap . | . . . . . . . Miscellaneous . | . . . . . . . Route ------- -11/Scrapyard -10/Materials (discovered 2 exits: *Mat / [*Min]) -9/Materials (discovered 2 exits: *Mat / [*Min]) -8/Materials -7/Factory -7/DSF -6/Factory History --------- Turn | Location | Event 3 | -11/Scrapyard | Discovered new exit (range 0) 3 | -11/Scrapyard | Entered Materials 170 | -10/Materials | Discovered new exit (range 6) 310 | -10/Materials | Build established: Mutant 691 | -10/Materials | Discovered new exit (range 16) 703 | -10/Materials | Derelicts attacked the area 723 | -10/Materials | Entered another Materials area 723 | -9/Materials | Evolved 2 slots: Propulsion x2 932 | -9/Materials | Discovered new exit (range 12) 1097 | -9/Materials | Lost 3 parts (1p1n1w) 1400 | -9/Materials | Repaired Aluminum Leg 1421 | -9/Materials | Discovered new exit (range 11) 1460 | -9/Materials | Build established: Scavenger-Mutant 1468 | -9/Materials | Entered another Materials area 1468 | -8/Materials | Evolved 2 slots: Utility x2 1915 | -8/Materials | Build established: Mutant 2229 | -8/Materials | Discovered new exit (range 4) 2969 | -8/Materials | Identified exit to Factory 2971 | -8/Materials | Entered Factory 2971 | -7/Factory | Evolved 2 slots: Power x1, Weapon x1 3178 | -7/Factory | Identified exit to DSF 3180 | -7/Factory | Entered DSF 3180 | -7/DSF | Accompanied by 1 ally 3211 | -7/DSF | Additional patrols routed to DSF 3277 | -7/DSF | Build established: Gunner 3342 | -7/DSF | Discovered new exit (range 16) 3344 | -7/DSF | Sterilization system engaged 3364 | -7/DSF | Ambient heat levels rising (+10) 3379 | -7/DSF | Ambient heat levels rising (+10) 3380 | -7/DSF | Identified exit to Factory 3384 | -7/DSF | Entered Factory 3384 | -6/Factory | Accompanied by 1 ally 3384 | -6/Factory | Evolved 2 slots: Utility x2 4087 | -6/Factory | Build established: Hacker-Gunner 4211 | -6/Factory | Garrison activated, responded to threat 4434 | -6/Factory | First assault squad dispatched 4664 | -6/Factory | Lost 9 parts (1p4n1u3w) 4747 | -6/Factory | Core integrity fell below 50% 4763 | -6/Factory | Lost 7 parts (1p3n3u) 4817 | -6/Factory | Lost 3 parts (1p2w) 4822 | -6/Factory | Core integrity fell below 20% 4849 | -6/Factory | Core destroyed Last Messages --------------- 04792_ R-10 Processor collects Wheel. 04794_ U-05 Engineer builds a Door. 04795_ Slammed into H-66 Slayer. 04797_ K-01 Serf collects debris. 04808_ Slammed into H-66 Slayer. 04809_ K-01 Serf collects debris. 04809_ Penetrated by Slug. 04812_ K-01 Serf collects debris. 04815_ Penetrated by Slug. 04817_ K-01 Serf collects debris. 04821_ Penetrated by Slug. 04822_ Slammed into H-66 Slayer. 04822_ K-01 Serf collects debris. 04827_ Penetrated by Slug. 04835_ Slammed into H-66 Slayer. 04839_ Penetrated by Slug. 04840_ M-28 Smith repairs H-66 Slayer. 04844_ Penetrated by Slug. 04849_ Slammed into H-66 Slayer. 04849_ Destabilizing: Core damaged (-34). Map ----- +----------------------------------------------------+ | #??????????????????# #????????????????????????? | | ##?###########??????# #????????????????????????? | | ???# #??????# #????????????????????????? | | ???# "" #??????# ############?????????????? | | ???# "" """ #??????# ## ] = #?????????????? | | ???# """ """ #?????## ## #?????????????? | | ???# """ "" #####?# ! # #?????????????? | | ???# """ F"" # ###= # #?????????????? | | ???# """ +*!! !% + """""" #?????????????? | | ???# # = ###| # """""" #?????????????? | | ???############/#### # """""" #?????????????? | | ?????# ==%%! ### ### """""" #?????????????? | | ?????# %*%% #?# #?###########?????????????? | | ?????# %!% #?# #?????????????????????????? | | ?????# % % #?# #?????????????????????????? | | ?????# % %% #?# #?????????????????????????? | | ?????# % % % ### ##????????????????????????? | | ?????#########+###### #######??????????????????? | | ????? % = ?????????????? | | ???????????### ###### #######??????????????????? | | ????????????## ????###+######????==#?????????????? | | ?????????????# ????# # ===#?????????????? | | ?????????????# ????# " " #] ===#?????????????? | | ?????????????? ????# "" " u # #?????????????? | | ?????????????? ????# """ ####+###?????????????? | | ?????????????? ????# """"@ + ????????? | | ?????????????? ????# """" h # ????????? | | ???????????????????# """" # ????????? | | ???????????????????# ! +? ????????? | | ???????????????????# #?########+#?????????? | | ???????????????????##########????????????????????? | | ?????????????????????????????????????????????????? | | ?????????????????????????????????????????????????? | | ?????????????????????????????????????????????????? | | ?????????????????????????????????????????????????? | | ?????????????????????????????????????????????????? | | ?????????????????????????????????????????????????? | | ?????????????????????????????????????????????????? | | ?????????????????????????????????????????????????? | | ?????????????????????????????????????????????????? | | ?????????????????????????????????????????????????? | | ?????????????????????????????????????????????????? | | ?????????????????????????????????????????????????? | | ?????????????????????????????????????????????????? | | ?????????????????????????????????????????????????? | | ?????????????????????????????????????????????????? | | ?????????????????????????????????????????????????? | | ?????????????????????????????????????????????????? | | ?????????????????????????????????????????????????? | | ?????????????????????????????????????????????????? | +----------------------------------------------------+ Best States ------------- Heat Dissipation 70 Energy Generation 25 Energy Capacity 465 Matter Stores 300 Matter Capacity 300 Sight Range 16 Terrain Scan Density 10 Armor Coverage 600 Weapon Cycling 15 Evasion (%) 55 Targeting Accuracy 6 Recoil Reduction 4 Offensive Hacking 10 Defensive Hacking 10 Authchip Count 2 Item Schematics ----------------- Hacking Suite | -9/Materials | Scanalyzed Robot Schematics ------------------ None Fabricated ------------ Nothing Alien Tech Used ----------------- None Achievements -------------- None Challenges ------------ None Game ------ Seed NavigationCloakCalibrator Manual? 0 Play Time 00:40:49 Cumulative 114.7 hours Start 2024.04.21 @ 14:58:17 End 2024.04.21 @ 15:39:20 Sessions 1 Manual Loads 0 Difficulty Rogue Special Mode None Game No. 226 Rogue 226 Adventurer 0 Explorer 0 Win Type - Total 0 Types 0/0/0/0/0/0/0/0/0 Lore% 32 Gallery% 42 Achievement% 30 Wizard Run 0 Options --------- Layout 1 ASCII 0 Keyboard 0 Movement Mouse Keybinds 0 Fullscreen 1 Font 24/Smallcaps Map View 50x40 Zoom Use 0% Tactical HUD 1 Map Filters NONE Filters NONE Steam 1 RUN: 1be62ccd-0eb8-4917-bc8b-c3721f50f627